Cogmind - Beta 13 @@@ ROGUE MODE // 2024.05.28 @ 22:26:27 Player: Some Pennies Result: Self-destructed Performance ------------- Evolutions (2) 1000 Regions Visited (5) 1000 Robots Destroyed (54) 270 Value Destroyed (1180) 1180 Prototype IDs (3) 60 Alien Tech Used (0) 0 Bonus (11) 11 TOTAL SCORE: 3521 Bonus ------- High Alert Combat Kills 11 Cogmind --------- Core Integrity 134/550 Matter 289/300 Energy 19/100 System Corruption 0% Temperature Cool (9) Movement Core (150) Ox2 Location -8/Materials Parts ------- > --- POWER (1) -------- (None) > --- PROPULSION (4) --- (None) > --- UTILITY (4) ------ Small Storage Unit Transport Network Coupler Light Armor Plating Hacking Suite > --- WEAPON (2) ------- Light Assault Rifle > --- INVENTORY (8) ---- Light Nuclear Core Light Angular Momentum Engine Improved Sensor Array Improved Signal Interpreter Assault Rifle Datajack Mining Laser Peak State ------------ > --- POWER ------------ Light Ion Engine > --- PROPULSION ------- Cesium-ion Thruster > --- UTILITY ---------- Improved Heat Sink Small Storage Unit Visual Processing Unit Hacking Suite > --- WEAPON ----------- Heavy Particle Cannon Assault Cannon > --- INVENTORY -------- Light Deuterium Engine Light Angular Momentum Engine Improved Sensor Array Improved Signal Interpreter Datajack Mining Laser [Rating: 20] Favorites ----------- Power Light Ion Engine Engine Light Ion Engine Propulsion Flight Unit Flight Unit Flight Unit Utility Small Storage Unit Device Improved Heat Sink Storage Small Storage Unit Processor Signal Interpreter Hackware Hacking Suite Protection Light Armor Plating Weapon Assault Rifle Energy Gun Improved EM Shotgun Energy Cannon Heavy Particle Cannon Ballistic Gun Assault Rifle Ballistic Cannon Light Cannon Build | -11 -10 -10 -10 -9 -8 ------- Run | Yrd Mat Min Exi Min Mat Slots Evolved 4 | . . . . . 4 Power . | . . . . . . Propulsion 2 | . . . . . 2 Utility 2 | . . . . . 2 Weapon . | . . . . . . Parts Attached 40 | 2 8 2 2 1 25 Power 4 | . 1 . . . 3 Engine 4 | . 1 . . . 3 Core . | . . . . . . Reactor . | . . . . . . Propulsion 9 | . 3 2 . . 4 Treads . | . . . . . . Leg . | . . . . . . Wheel . | . . . . . . Hover . | . . . . . . Flight 9 | . 3 2 . . 4 Utility 11 | 1 2 . . 1 7 Device 3 | 1 . . . . 2 Storage 1 | . 1 . . . . Processor 4 | . 1 . . 1 2 Hackware 2 | . . . . . 2 Protection 1 | . . . . . 1 Artifact . | . . . . . . Weapon 16 | 1 2 . 2 . 11 Energy Gun 4 | . . . . . 4 Energy Cannon 2 | . . . . . 2 Ballistic Gun 7 | 1 1 . 2 . 3 Ballistic Cannon 3 | . 1 . . . 2 Launcher . | . . . . . . Special Weapon . | . . . . . . Impact Weapon . | . . . . . . Slashing Weapon . | . . . . . . Piercing Weapon . | . . . . . . Special Melee Weapon . | . . . . . . Unidentified Prototypes 1 | . . . . . 1 Parts Lost 18 | . 1 . . . 17 Power 2 | . . . . . 2 Propulsion 6 | . . . . . 6 Utility 4 | . . . . . 4 Weapon 6 | . 1 . . . 5 Highest Loss Streak 7 | . 1 . . . 7 To Critical Strikes . | . . . . . . Average Slot Usage (%) 71 | . 58 100 81 85 72 Engine 6 | . 3 14 14 . 6 Flight 16 | . 6 28 28 28 16 Device 4 | . 5 . . . 5 Storage 9 | . 8 14 14 14 9 Processor 10 | . 9 14 14 14 9 Hackware 4 | . . . . . 8 Energy Gun 3 | . . . . . 6 Ballistic Gun 11 | . 16 28 10 28 4 Ballistic Cannon 3 | . 8 . . . 2 Naked Turns . | . . . . . . Heaviest Build 20 | 3 11 11 11 8 20 Greatest Support 16 | 3 8 8 8 8 16 Greatest Overweight (x) 5 | . 3 1 1 . 5 Average Overweight (x) . | . . 1 . . . Largest Inventory Capacity 8 | 5 8 8 8 8 8 Average Capacity 7 | 5 6 8 8 8 8 Most Carried 8 | 4 8 8 8 8 8 Average Carried 6 | 2 5 7 7 8 6 Final Capacity 8 | 5 8 8 8 8 8 Final Carried 8 | 4 8 8 7 8 7 Class Distribution -------------------- 53% | Scavenger-Mutant 40% | Mutant 6% | Scavenger-Sprinter Dominant Class ---------------- Mutant | -10/Materials Scavenger-Mutant | -10/Mines Scavenger-Mutant | -10/Exiles Mutant | -9/Mines Scavenger-Mutant | -8/Materials Resources | -11 -10 -10 -10 -9 -8 ----------- Run | Yrd Mat Min Exi Min Mat Matter Collected 1175 | 268 301 16 . 62 528 Remotely . | . . . . . . Salvage Created 2068 | 145 673 42 . . 1208 Parts 139 | 13 42 8 . . 76 Haulers Intercepted 5 | . 1 . . . 4 Recyclers Shooed 1 | . 1 . . . . Parts Field Recycled . | . . . . . . Retrieved Matter . | . . . . . . Parts Self-Destructed . | . . . . . . Prevented . | . . . . . . Kills | -11 -10 -10 -10 -9 -8 ------- Run | Yrd Mat Min Exi Min Mat Combat Hostiles Destroyed 26 | . 11 3 . . 12 Guns 10 | . 4 3 . . 3 Cannons 13 | . 7 . . . 6 AOE 1 | . . . . . 1 Classes Destroyed 12 | 2 5 . . . 5 Worker 3 | . . . . . 3 Builder 3 | . . . . . 3 Tunneler 4 | 3 . . . . 1 Hauler 5 | . 1 . . . 4 Recycler 6 | 1 3 . . . 2 Operator 2 | . 1 . . . 1 Watcher 5 | . 2 . . . 3 Swarmer 6 | . 3 3 . . . Grunt 16 | . 8 . . . 8 Duelist 1 | . . . . . 1 Sentry 2 | . . . . . 2 Hunter 1 | . . . . . 1 Best Kill Streak 11 | 3 11 3 . . 7 Combat Bots Only 7 | . 7 3 . . 3 Max Kills in Single Turn 2 | 1 1 1 . . 2 Gunslinging . | . . . . . . Exploded 1 | . . . . . 1 Melee . | . . . . . . Uniques/NPCs Destroyed . | . . . . . . Combat | -11 -10 -10 -10 -9 -8 -------- Run | Yrd Mat Min Exi Min Mat Hostile Shots Fired 189 | . 35 18 . . 136 Missed 60 | . 9 8 . . 43 Damage Taken 1821 | . 290 81 . . 1450 Core 543 | . 100 27 . . 416 Absorbed by Shields . | . . . . . . Core Remaining (%) 74 | 100 . . . 49 . Volleys Fired 177 | 16 50 6 . 3 102 Largest 2 | 1 2 2 . 2 2 Hottest 119 | 20 55 40 . 40 119 Shots Fired 294 | 16 82 12 . 6 178 Gun 213 | 16 56 12 . 6 123 Cannon 81 | . 26 . . . 55 Launcher . | . . . . . . Special . | . . . . . . Kinetic 211 | 16 82 12 . 6 95 Thermal 28 | . . . . . 28 Explosive . | . . . . . . Electromagnetic 55 | . . . . . 55 Robot Hit Streak 14 | 5 12 2 . 5 14 Robot Miss Streak 9 | 1 4 6 . 1 9 Penetration Max . | . . . . . . Secondary Targets 1 | . . 1 . . . Max Gunslinging Chain 1 | . . 1 . . . Shots Hit Robots 186 | 12 51 5 . 4 114 Core Hits 85 | 5 22 3 . 1 54 Critical Kills 1 | 1 . . . . . Critical Parts Destroyed 1 | . 1 . . . . Critical Strikes 3 | 1 2 . . . . Destroy 2 | 1 1 . . . . Blast 1 | . 1 . . . . Melee Attacks . | . . . . . . Impact . | . . . . . . Slashing . | . . . . . . Piercing . | . . . . . . Sneak Attacks . | . . . . . . Combat Hostiles . | . . . . . . Follow-up Attacks . | . . . . . . Damage Inflicted 3234 | 151 768 80 . 46 2189 Guns 1891 | 151 438 80 . 46 1176 Cannons 1109 | . 330 . . . 779 Explosions 234 | . . . . . 234 Melee . | . . . . . . Ramming . | . . . . . . Kinetic 1783 | 151 768 80 . 46 738 Thermal 684 | . . . . . 684 Explosive . | . . . . . . Electromagnetic 767 | . . . . . 767 Impact . | . . . . . . Slashing . | . . . . . . Piercing . | . . . . . . Highest Corruption 2 | . 2 2 2 2 . Average Corruption 2 | . 2 2 2 2 . Corruption Purged . | . . . . . . Corruption Blocked . | . . . . . . Effects 7 | . 2 2 2 1 . Message Errors 1 | . 1 . . . . Matter Fused 2 | . . 1 . 1 . Heat Flow Errors 2 | . . 1 1 . . Data Loss (minor) 1 | . . . 1 . . Alerts 1 | . 1 . . . . Overload Shots . | . . . . . . Overflow Damage 15 | . . . . . 15 Projectiles . | . . . . . . Explosions 15 | . . . . . 15 Melee . | . . . . . . Knockbacks 3 | . . . . . 3 Impact . | . . . . . . Kinetic 3 | . . . . . 3 Secondary . | . . . . . . Self-Inflicted Damage 45 | . . . . . 45 Shots 1 | . . . . . 1 Rammed . | . . . . . . Targets Rammed . | . . . . . . Kicked . | . . . . . . Crushed . | . . . . . . Highest Temperature 424 | . 8 156 107 . 424 Average Temperature 65 | . 3 39 58 . 79 Received Heat Transfer 678 | . 111 . . . 567 Siege Activations . | . . . . . . Robots Corrupted 2 | . . . . . 2 Combat Hostiles 2 | . . . . . 2 Parts Fried 5 | . . . . . 5 Impact Corruptions . | . . . . . . Robots Melted . | . . . . . . Combat Hostiles . | . . . . . . Parts Melted . | . . . . . . Heat Transferred 966 | . . . . . 966 Parts Sabotaged . | . . . . . . Parts Stolen . | . . . . . . Parts Stripped . | . . . . . . Power Chain Reactions 3 | . . . . . 3 Alert | -11 -10 -10 -10 -9 -8 ------- Run | Yrd Mat Min Exi Min Mat Peak Influence 419 | 20 419 155 . . 236 Initial 85 | . 13 85 . . . Average 139 | 6 200 149 . . 123 Maximum Alert Level 2 | . 2 . . . 1 Low Security (%) 71 | 100 48 100 . 100 75 Level 1 26 | . 43 . . . 24 Level 2 2 | . 8 . . . . Level 3 . | . . . . . . Level 4 . | . . . . . . Level 5 . | . . . . . . High Security . | . . . . . . Max Security . | . . . . . . Squads Dispatched 7 | . 4 . . . 3 Investigation 3 | . 1 . . . 2 Extermination . | . . . . . . Reinforcement 4 | . 3 . . . 1 Assault . | . . . . . . Garrison . | . . . . . . Intercept . | . . . . . . Searches Triggered . | . . . . . . Construction Impeded . | . . . . . . Haulers Reinforced . | . . . . . . Active Scanning Responses . | . . . . . . Cargo Convoy Interrupts . | . . . . . . Stealth | -11 -10 -10 -10 -9 -8 --------- Run | Yrd Mat Min Exi Min Mat Distress Signals 2 | . 1 . . . 1 Communications Jammed . | . . . . . . Distress Signals . | . . . . . . Times Spotted 52 | . 18 4 . . 30 Peak Tracking Total 7 | . 7 3 . . 7 Tactical Retreats 4 | . 1 1 . . 2 Traps | -11 -10 -10 -10 -9 -8 ------- Run | Yrd Mat Min Exi Min Mat Traps Triggered 4 | . 2 . . . 2 Indirectly . | . . . . . . Trap Hack Attempts . | . . . . . . Triggered . | . . . . . . Disarmed . | . . . . . . Reprogrammed . | . . . . . . Reused . | . . . . . . Traps Extracted . | . . . . . . Installed 1 | . . . 1 . . Triggered . | . . . . . . Most Traps Carried 1 | . . 1 1 . . Machines | -11 -10 -10 -10 -9 -8 ---------- Run | Yrd Mat Min Exi Min Mat Machines Disabled 2 | . 1 . . . 1 Max in Single Turn 1 | . 1 . . . 1 Machines Repaired . | . . . . . . Machines Dismantled . | . . . . . . Machines Sabotaged . | . . . . . . Overloaded Fab Kills . | . . . . . . Hacking | -11 -10 -10 -10 -9 -8 --------- Run | Yrd Mat Min Exi Min Mat Machines Accessed 4 | . 1 . 1 . 2 Terminals 3 | . 1 . . . 2 Fabricators . | . . . . . . Repair Stations . | . . . . . . Recycling Units . | . . . . . . Scanalyzers . | . . . . . . Garrison Access . | . . . . . . Total Hacks 15 | . 5 . 1 . 9 Successful 10 | . 4 . 1 . 5 Failed 5 | . 1 . . . 4 Catastrophic . | . . . . . . Database Lockouts . | . . . . . . Manual 7 | . 3 . . . 4 Terminals 14 | . 5 . . . 9 Fabricators . | . . . . . . Repair Stations . | . . . . . . Recycling Units . | . . . . . . Scanalyzers . | . . . . . . Garrison Access . | . . . . . . Terminal Hacks 10 | . 4 . 1 . 5 Record 1 | . . . 1 . . Robot Analysis 2 | . 2 . . . . Prototype ID Bank 1 | . . . . . 1 Branch Access Points 1 | . . . . . 1 Emergency Access Points 1 | . 1 . . . . Hauler Manifests 1 | . . . . . 1 Registered Components 1 | . . . . . 1 Zone Layout 2 | . 1 . . . 1 Fabricator Hacks . | . . . . . . Repair Station Hacks . | . . . . . . Recycling Unit Hacks . | . . . . . . Scanalyzer . | . . . . . . Garrison Access Hacks . | . . . . . . Unauthorized Hacks . | . . . . . . Terminals . | . . . . . . Fabricators . | . . . . . . Repair Stations . | . . . . . . Recycling Units . | . . . . . . Scanalyzers . | . . . . . . Garrison Access . | . . . . . . Data Cores Recovered . | . . . . . . Used . | . . . . . . Hacking Detections 2 | . 1 . . . 1 Full Trace Events 1 | . 1 . . . . Feedback Events . | . . . . . . Feedback Blocked . | . . . . . . Robot Schematics Acquired . | . . . . . . Robots Built . | . . . . . . Authchips . | . . . . . . Time . | . . . . . . Total Robot Build Rating . | . . . . . . Part Schematics Acquired . | . . . . . . Parts Built . | . . . . . . Authchips . | . . . . . . Time . | . . . . . . Total Part Build Rating . | . . . . . . Parts Repaired . | . . . . . . Time . | . . . . . . Parts Recycled . | . . . . . . Recycled Matter . | . . . . . . Retrieved Matter . | . . . . . . Retrieved Components . | . . . . . . Parts Scanalyzed . | . . . . . . Part Schematics Acquired . | . . . . . . Parts Damaged . | . . . . . . Bothacking | -11 -10 -10 -10 -9 -8 ------------ Run | Yrd Mat Min Exi Min Mat Used RIF Installer . | . . . . . . Robots Hacked . | . . . . . . Non-combat . | . . . . . . Combat . | . . . . . . Robot Hacks Applied . | . . . . . . Relay Couplers Released . | . . . . . . Fabnet Peak Effective % . | . . . . . . Robots Rewired . | . . . . . . Allies Hacked . | . . . . . . Hacks Repelled . | . . . . . . Allies | -11 -10 -10 -10 -9 -8 -------- Run | Yrd Mat Min Exi Min Mat Total Allies . | . . . . . . Largest Group . | . . . . . . Highest-Rated Group . | . . . . . . Highest-Rated Ally . | . . . . . . Total Orders . | . . . . . . Ally Attacks . | . . . . . . Total Damage . | . . . . . . Kills . | . . . . . . Allies Corrupted . | . . . . . . Allies Melted . | . . . . . . Intel | -11 -10 -10 -10 -9 -8 ------- Run | Yrd Mat Min Exi Min Mat Robot Analysis Total 2 | . 2 . . . . Derelict Logs Recovered . | . . . . . . Drone Launches . | . . . . . . Drone Recoveries . | . . . . . . Exploration | -11 -10 -10 -10 -9 -8 ------------- Run | Yrd Mat Min Exi Min Mat Turns Passed 1796 | 64 501 124 180 74 853 Spaces Moved 1447 | 48 347 87 346 159 460 Core 372 | 48 250 . . . 74 Treads . | . . . . . . Legs . | . . . . . . Wheels . | . . . . . . Hover . | . . . . . . Flight 1075 | . 97 87 346 159 386 Fastest Speed 31 | 50 37 117 37 37 31 Average Speed 78 | 50 99 117 50 37 92 Slowest Speed 300 | 50 200 117 117 37 300 Overloaded Moves . | . . . . . . Propulsion Burnouts . | . . . . . . Robots Hopped 1 | . . . . . 1 Cave-ins Triggered . | . . . . . . Exploration Rate (%) 34 | 3 54 16 52 45 39 Regions Visited 5 Branch Regions 3 Pre-discovered Areas 1 | . . . 1 . . Known Exits Taken 3 | . 1 1 1 . . Unknown Exits Taken 2 | 1 . . . 1 . Scrap Searched 3 | . . . . 3 . Spaces Dug . | . . . . . . Terrain Destroyed 26 | . . . . . 26 Melee . | . . . . . . Projectile 16 | . . . . . 16 AOE 10 | . . . . . 10 Terrain Rammed . | . . . . . . Walls Destroyed . | . . . . . . Machines Disabled . | . . . . . . Actions | -11 -10 -10 -10 -9 -8 --------- Run | Yrd Mat Min Exi Min Mat Total 1823 | 71 420 100 352 168 712 Wait 117 | . 8 . . 4 105 Move 1440 | 47 346 86 345 158 458 Hop 1 | . . . . . 1 Pick Up 34 | 6 8 2 1 . 17 Fast Attach 7 | . 2 . 1 1 3 Attach 24 | 2 4 . 1 . 17 Detach 1 | . . . . 1 . Swap 9 | . 2 2 . . 5 Drop 12 | . . 4 3 1 4 Fire 177 | 16 50 6 . 3 102 Melee . | . . . . . . Ram . | . . . . . . Kick . | . . . . . . Crush . | . . . . . . Escape Stasis . | . . . . . . Rewire . | . . . . . . Trap 1 | . . . 1 . . Miscellaneous . | . . . . . . Route ------- -11/Scrapyard -10/Materials (discovered 3 exits: *Mat x2 / *Min) -10/Mines -10/Exiles (discovered 2 exits: *Min x2) -9/Mines -8/Materials (discovered 1 exit: [*Fac]) History --------- Turn | Location | Event 6 | -11/Scrapyard | Discovered new exit (range 15) 65 | -11/Scrapyard | Entered Materials 190 | -10/Materials | Discovered new exit (range 16) 230 | -10/Materials | Identified exit to Materials 301 | -10/Materials | Build established: Mutant 443 | -10/Materials | Destroyed 7 combat bots 489 | -10/Materials | Discovered exit to Materials (range 16) 542 | -10/Materials | Discovered new exit (range 9) 565 | -10/Materials | Identified exit to Mines 566 | -10/Materials | Entered Mines 571 | -10/Mines | Core integrity fell below 50% 609 | -10/Mines | Deemed a non-threat by the Exiles lab entrance 609 | -10/Mines | Discovered new exit (range 5) 651 | -10/Mines | Assembled infested the area 651 | -10/Mines | Found a hidden stash of uninstalled traps 689 | -10/Mines | Identified exit to Exiles 690 | -10/Mines | Entered Exiles 722 | -10/Exiles | Met 8R-AWN 730 | -10/Exiles | Warned about trapping Exiles lab 750 | -10/Exiles | Build established: Scavenger-Mutant 751 | -10/Exiles | Met EX-HEX 761 | -10/Exiles | Met EX-BIN 766 | -10/Exiles | Met EX-DEC 767 | -10/Exiles | Learned location of Zion (-6) 796 | -10/Exiles | Discovered new exit (range 14) 800 | -10/Exiles | Identified exit to Mines 855 | -10/Exiles | Discovered exit to Mines (range 15) 870 | -10/Exiles | Entered Mines 906 | -9/Mines | A weapon hastily lodged in a ceiling crevice suddenly fell to the ground 937 | -9/Mines | Discovered new exit (range 13) 944 | -9/Mines | Entered Materials 944 | -8/Materials | Evolved 4 slots: Propulsion x2, Utility x2 1134 | -8/Materials | Lost 3 parts (2n1u) 1471 | -8/Materials | Discovered new exit (range 6) 1589 | -8/Materials | Core integrity fell below 50% 1598 | -8/Materials | Lost 7 parts (1p2n1u3w) 1797 | -8/Materials | Self-destructed Last Messages --------------- 01753_ Triggered Alarm Trap. 01753_ An alarm sounds. 01753_ ALERT: Alarm triggered, dispatching investigation squad. 01766_ U-05 Engineer lays Concrete. 01767_ K-01 Serf collects debris. 01768_ U-05 Engineer lays Concrete. 01773_ Processing Tank disabled. 01776_ T-07 Excavator destroyed. 01778_ K-01 Serf collects debris. 01779_ A-02 Transporter destroyed. 01781_ K-01 Serf collects debris. 01789_ Imp. EM Shotgun destroyed. 01789_ Critical hit (Burn: +37). 01791_ Chain reaction triggered in Lgt. Nuclear Core. 01791_ Imp. EM Shotgun destroyed. 01791_ Destroyed Imp. EM Shotgun. 01796_ U-05 Engineer lays Concrete. 01797_ U-05 Engineer builds a Wall. Map ----- +----------------------------------------------------+ | | | | | | | | | | | | | | | | | ####?????????????????????????????????????????????? | | ] #?????????????????????????????????????????????? | | ] #?????????????????????????????????????????????? | | #?????????????????????????????????????????????? | | #?????????????????????????????????????????????? | | "" #??##?????????????????????????????????????????? | | "" #? ######?????????????##+#???????????????????? | | "" #?< ?????????????? #??######???????????? | | # ???????????????? #??]!!**#???????????? | | +### #??????????????????T #?]]!!**#???????????? | | #?????????????????? #? #???????????? | | #?????????????????? ## ###?????????? | | #?????????????????? ??????????? | | #########????????????????? ????????????? | | #" #??????############ #??????????????? | | ## #??????? # #??????????????? | | ## #????????""""" ];]g +??????????????? | | ## #????????"""" ]@g%* #??????????????? | | ## #????????""""= k];] #??????????????? | | ## % #?????? !% # #######??????????????? | | """/##"#??????############u##???????????????????? | | *%!% #?????????????????# #????????????????????? | | =%*=%! #???????########??# #????????????????????? | | % #???????#!!!!!!#??# #????????????????????? | | ### #???????#!!!!!!#??# #????????????????????? | | #### % #???????# #??#/#########????????????? | | "" # = #########! #### #????????????? | | R" # !!!%= [ #a """ #????????????? | | " # % =!! % # """"" #????????????? | | # ==*== [== % # """"" #????????????? | | # %==%"%" "%" #### / """" #????????????? | | +### ==""" """ #??# # !=|""" #????????????? | | = = !""" """ #??# # =%=* #????????????? | | #??# #!% %= #????????????? | | #?## #####+#####????????????? | | #?## "####[####?????????????? | | ################ #?## % =! +?????????????? | | ???????????????#####?## %="#########?????????????? | | ?????????????????????## = " ????????????????????? | | ??????????????????????# " ???????????????????? | | ??????????????????????# # ??????????????????? | | ??????????????????????# # ????????????????? | +----------------------------------------------------+ Best States ------------- Heat Dissipation 45 Energy Generation 14 Energy Capacity 140 Matter Stores 300 Matter Capacity 300 Sight Range 18 Terrain Scan Range 16 Terrain Scan Density 10 Armor Coverage 150 Evasion (%) 63 Offensive Hacking 10 Item Schematics ----------------- None Robot Schematics ------------------ None Fabricated ------------ Nothing Alien Tech Used ----------------- None Achievements -------------- None Challenges ------------ None Game ------ Seed ServoInsulationShearcannon Manual? 0 Play Time 00:23:31 Cumulative 104.4 hours Start 2024.05.28 @ 22:03:19 End 2024.05.28 @ 22:26:27 Sessions 1 Manual Loads 0 Difficulty Rogue Special Mode None Game No. 94 Rogue 89 Adventurer 5 Explorer 0 Win Type - Total 1 Types 1/0/0/0/0/0/0/0/0 Lore% 46 Gallery% 58 Achievement% 43 Wizard Run 0 Options --------- Layout 2 ASCII 0 Keyboard 0 Movement Mouse Keybinds 0 Fullscreen 2 Font 24/Smallcaps Map View 50x44 Zoom Use 0% Tactical HUD 1 Map Filters NONE Filters NONE Steam 1 RUN: 1795714c-8526-45f2-a2fa-f6c46a5dfd99